Cogmind - Beta 13 X1 @@@ ROGUE MODE // 2023.08.16 @ 22:29:42 Player: f3-rnm Result: Destroyed by 8R-AWN with 8R-AWN's Boregun Performance ------------- Evolutions (0) 0 Regions Visited (3) 600 Robots Destroyed (18) 90 Value Destroyed (430) 430 Prototype IDs (23) 460 Alien Tech Used (0) 0 Bonus (300) 300 TOTAL SCORE: 1880 Bonus ------- Aligned with FarCom 300 Cogmind --------- Core Integrity 0/250 Matter 275/300 Energy 45/100 System Corruption 0% Temperature Cool (2) Movement Flying (37) Location -10/Exiles Parts ------- > --- POWER (1) -------- (None) > --- PROPULSION (2) --- Flight Unit Flight Unit > --- UTILITY (2) ------ (None) > --- WEAPON (2) ------- (None) > --- INVENTORY (5) ---- Flight Unit Small Storage Unit Seismic Detector Grenade Launcher Makeshift Hammer Peak State ------------ > --- POWER ------------ Light Nuclear Core > --- PROPULSION ------- Light Treads > --- UTILITY ---------- High-capacity Storage Unit Light Armor Plating > --- WEAPON ----------- YOLO Cannon > --- INVENTORY -------- Light Ion Engine Flight Unit Flight Unit Flight Unit Flight Unit Small Storage Unit Seismic Detector Light Cannon Grenade Launcher Makeshift Hammer [Rating: 27] Favorites ----------- Power Light Ion Engine Engine Light Ion Engine Power Core Light Nuclear Core Propulsion Light Treads Treads Light Treads Flight Unit Flight Unit Utility Light Armor Plating Device Structural Scanner Storage High-capacity Storage Unit Protection Light Armor Plating Weapon Beam Rifle Energy Gun Beam Rifle Energy Cannon Beam Cannon Launcher Grenade Launcher Build | -11 -10 -10 -10 ------- Run | Jun Mat Min Exi Slots Evolved . | . . . . Power . | . . . . Propulsion . | . . . . Utility . | . . . . Weapon . | . . . . Parts Attached 20 | 5 2 9 4 Power 3 | 1 . 1 1 Engine 2 | 1 . 1 . Core 1 | . . . 1 Reactor . | . . . . Propulsion 6 | 2 . 2 2 Treads 4 | 2 . 2 . Leg . | . . . . Wheel . | . . . . Hover . | . . . . Flight 2 | . . . 2 Utility 4 | . 2 2 . Device 1 | . 1 . . Storage 2 | . 1 1 . Processor . | . . . . Hackware . | . . . . Protection 1 | . . 1 . Artifact . | . . . . Weapon 7 | 2 . 4 1 Energy Gun 4 | 2 . 2 . Energy Cannon 2 | . . 1 1 Ballistic Gun . | . . . . Ballistic Cannon . | . . . . Launcher 1 | . . 1 . Special Weapon . | . . . . Impact Weapon . | . . . . Slashing Weapon . | . . . . Piercing Weapon . | . . . . Special Melee Weapon . | . . . . Unidentified Prototypes . | . . . . Parts Lost 5 | . . 2 3 Power 2 | . . 1 1 Propulsion 2 | . . 1 1 Utility 1 | . . . 1 Weapon . | . . . . Highest Loss Streak 2 | . . 1 2 To Critical Strikes 2 | . . . 2 Average Slot Usage (%) 86 | . 89 90 78 Engine 13 | . 14 14 11 Treads 22 | . 28 24 12 Device 1 | . 6 . . Storage 13 | . 11 14 13 Protection 7 | . . 8 11 Energy Gun 18 | . 28 18 10 Energy Cannon 7 | . . 8 13 Naked Turns . | . . . . Heaviest Build 64 | 6 12 52 64 Greatest Support 40 | 40 40 40 20 Greatest Overweight (x) 20 | . . 2 20 Average Overweight (x) . | . . . 2 Largest Inventory Capacity 20 | 5 8 20 20 Average Capacity 13 | 5 7 13 19 Most Carried 12 | 3 4 10 12 Average Carried 6 | 1 2 7 9 Final Capacity 20 | 5 8 20 5 Final Carried 10 | 2 4 10 5 Class Distribution -------------------- 82% | Mutant 17% | Scavenger-Mutant Dominant Class ---------------- Mutant | -10/Materials Mutant | -10/Mines Mutant | -10/Exiles Resources | -11 -10 -10 -10 ----------- Run | Jun Mat Min Exi Matter Collected 377 | 158 112 107 . Remotely . | . . . . Salvage Created 546 | . 133 375 38 Parts 26 | . 8 18 . Haulers Intercepted . | . . . . Recyclers Shooed 2 | . 1 1 . Parts Field Recycled . | . . . . Retrieved Matter . | . . . . Parts Self-Destructed . | . . . . Prevented . | . . . . Kills | -11 -10 -10 -10 ------- Run | Jun Mat Min Exi Combat Hostiles Destroyed 23 | . 5 12 6 Melee 1 | . . 1 . Guns 9 | . 5 4 . Cannons 6 | . . 4 2 AOE 7 | . . 3 4 Classes Destroyed 4 | . 2 1 1 Recycler 1 | . . 1 . Swarmer 9 | . 3 6 . Grunt 8 | . 2 6 . Assembled 6 | . . . 6 Best Kill Streak 5 | . 3 3 5 Combat Bots Only 5 | . 3 3 5 Max Kills in Single Turn 3 | . 2 2 3 Gunslinging 1 | . . 1 . Exploded 3 | . . 2 3 Melee 1 | . . 1 . Uniques/NPCs Destroyed . | . . . . Combat | -11 -10 -10 -10 -------- Run | Jun Mat Min Exi Damage Taken 1297 | . 424 405 468 Core 259 | . 94 52 113 Absorbed by Shields . | . . . . Core Remaining (%) 100 | 100 . . . Volleys Fired 49 | . 20 22 7 Largest 2 | . 2 2 1 Hottest 116 | . 90 116 100 Shots Fired 91 | . 40 44 7 Gun 67 | . 40 27 . Cannon 22 | . . 15 7 Launcher 2 | . . 2 . Special . | . . . . Kinetic . | . . . . Thermal 89 | . 40 42 7 Explosive 2 | . . 2 . Electromagnetic . | . . . . Robot Hit Streak 7 | . 4 7 2 Robot Miss Streak 3 | . 3 2 2 Penetration Max . | . . . . Secondary Targets 1 | . . 1 . Max Gunslinging Chain 1 | . . 1 . Shots Hit Robots 51 | . 20 29 2 Core Hits 30 | . 9 16 5 Critical Kills . | . . . . Critical Parts Destroyed . | . . . . Critical Strikes 5 | . 3 2 . Burn 5 | . 3 2 . Melee Attacks . | . . . . Impact . | . . . . Slashing . | . . . . Piercing . | . . . . Sneak Attacks . | . . . . Combat Hostiles . | . . . . Follow-up Attacks . | . . . . Damage Inflicted 1395 | . 256 632 507 Guns 511 | . 256 255 . Cannons 374 | . . 174 200 Explosions 489 | . . 182 307 Melee . | . . . . Ramming 21 | . . 21 . Kinetic . | . . . . Thermal 1192 | . 256 429 507 Explosive 182 | . . 182 . Electromagnetic . | . . . . Impact . | . . . . Slashing . | . . . . Piercing . | . . . . Highest Corruption . | . . . . Average Corruption . | . . . . Corruption Purged . | . . . . Corruption Blocked . | . . . . Overload Shots . | . . . . Overflow Damage 86 | . . 15 71 Projectiles 46 | . . . 46 Explosions 40 | . . 15 25 Melee . | . . . . Knockbacks . | . . . . Impact . | . . . . Kinetic . | . . . . Secondary . | . . . . Self-Inflicted Damage . | . . . . Shots . | . . . . Rammed 5 | . . 5 . Targets Rammed 6 | . . 6 . Kicked . | . . . . Crushed 1 | . . 1 . Highest Temperature 375 | . 360 375 64 Average Temperature 107 | . 114 123 24 Received Heat Transfer 396 | . 201 195 . Effects 5 | . 2 3 . Energy Bleed 2 | . 1 1 . Interference 2 | . . 2 . Short Circuit 1 | . 1 . . Siege Activations . | . . . . Robots Corrupted . | . . . . Combat Hostiles . | . . . . Parts Fried . | . . . . Impact Corruptions . | . . . . Robots Melted . | . . . . Combat Hostiles . | . . . . Parts Melted 5 | . 3 2 . Heat Transferred 2565 | . 892 1173 500 Parts Sabotaged . | . . . . Parts Stolen . | . . . . Parts Stripped . | . . . . Power Chain Reactions . | . . . . Missiles Intercepted . | . . . . Alert | -11 -10 -10 -10 ------- Run | Jun Mat Min Exi Peak Influence 164 | . 135 164 . Initial 5 | . . 5 . Average 78 | . 19 121 . Maximum Alert Level . | . . . . Low Security (%) 100 | 100 100 100 . Level 1 . | . . . . Level 2 . | . . . . Level 3 . | . . . . Level 4 . | . . . . Level 5 . | . . . . High Security . | . . . . Max Security . | . . . . Squads Dispatched 1 | . 1 . . Investigation 1 | . 1 . . Extermination . | . . . . Reinforcement . | . . . . Assault . | . . . . Garrison . | . . . . Intercept . | . . . . Searches Triggered . | . . . . Construction Impeded . | . . . . Haulers Reinforced . | . . . . Active Scanning Responses . | . . . . Cargo Convoy Interrupts . | . . . . Stealth | -11 -10 -10 -10 --------- Run | Jun Mat Min Exi Distress Signals 2 | . 2 . . Communications Jammed . | . . . . Distress Signals . | . . . . Times Spotted 31 | . 14 13 4 Peak Tracking Total 9 | . 6 3 9 Tactical Retreats 1 | . . 1 . Traps | -11 -10 -10 -10 ------- Run | Jun Mat Min Exi Traps Triggered . | . . . . Indirectly . | . . . . Trap Hack Attempts . | . . . . Triggered . | . . . . Disarmed . | . . . . Reprogrammed . | . . . . Reused . | . . . . Traps Extracted . | . . . . Installed . | . . . . Triggered . | . . . . Machines | -11 -10 -10 -10 ---------- Run | Jun Mat Min Exi Machines Disabled 4 | . . 1 3 Max in Single Turn 1 | . . 1 1 Machines Repaired . | . . . . Machines Sabotaged . | . . . . Overloaded Fab Kills . | . . . . Hacking | -11 -10 -10 -10 --------- Run | Jun Mat Min Exi Machines Accessed 4 | . 2 1 1 Terminals 3 | . 2 1 . Fabricators . | . . . . Repair Stations . | . . . . Recycling Units . | . . . . Scanalyzers . | . . . . Garrison Access . | . . . . Total Hacks 7 | . 4 2 1 Successful 3 | . 1 1 1 Failed 4 | . 3 1 . Catastrophic 1 | . 1 . . Database Lockouts . | . . . . Manual 5 | . 4 . 1 Terminals 6 | . 4 2 . Fabricators . | . . . . Repair Stations . | . . . . Recycling Units . | . . . . Scanalyzers . | . . . . Garrison Access . | . . . . Terminal Hacks 2 | . . 1 1 Zone Layout 1 | . . 1 . Derelict Proto ID Bank 1 | . . . 1 Fabricator Hacks . | . . . . Repair Station Hacks . | . . . . Recycling Unit Hacks . | . . . . Scanalyzer . | . . . . Garrison Access Hacks . | . . . . Unauthorized Hacks 1 | . 1 . . Terminals 1 | . 1 . . Assimilate 1 | . 1 . . Fabricators . | . . . . Repair Stations . | . . . . Recycling Units . | . . . . Scanalyzers . | . . . . Garrison Access . | . . . . Data Cores Recovered . | . . . . Used . | . . . . Hacking Detections 3 | . 2 1 . Full Trace Events 1 | . 1 . . Feedback Events . | . . . . Feedback Blocked . | . . . . Robot Schematics Acquired . | . . . . Robots Built . | . . . . Authchips . | . . . . Time . | . . . . Total Robot Build Rating . | . . . . Part Schematics Acquired . | . . . . Parts Built . | . . . . Authchips . | . . . . Time . | . . . . Total Part Build Rating . | . . . . Parts Repaired . | . . . . Time . | . . . . Parts Recycled . | . . . . Recycled Matter . | . . . . Retrieved Matter . | . . . . Retrieved Components . | . . . . Parts Scanalyzed . | . . . . Part Schematics Acquired . | . . . . Parts Damaged . | . . . . Bothacking | -11 -10 -10 -10 ------------ Run | Jun Mat Min Exi Used RIF Installer . | . . . . Robots Hacked . | . . . . Non-combat . | . . . . Combat . | . . . . Robot Hacks Applied . | . . . . Relay Couplers Released . | . . . . Fabnet Peak Effective % . | . . . . Robots Rewired . | . . . . Allies Hacked . | . . . . Hacks Repelled . | . . . . Allies | -11 -10 -10 -10 -------- Run | Jun Mat Min Exi Total Allies . | . . . . Largest Group . | . . . . Highest-Rated Group . | . . . . Highest-Rated Ally . | . . . . Total Orders . | . . . . Ally Attacks . | . . . . Total Damage . | . . . . Kills . | . . . . Allies Corrupted . | . . . . Allies Melted . | . . . . Intel | -11 -10 -10 -10 ------- Run | Jun Mat Min Exi Robot Analysis Total . | . . . . Derelict Logs Recovered 2 | . . 2 . Drone Launches . | . . . . Drone Recoveries . | . . . . Exploration | -11 -10 -10 -10 ------------- Run | Jun Mat Min Exi Turns Passed 1737 | 80 446 737 474 Spaces Moved 728 | 46 231 324 127 Core 5 | 4 . . 1 Treads 716 | 42 231 324 119 Legs . | . . . . Wheels . | . . . . Hover . | . . . . Flight 7 | . . . 7 Fastest Speed 37 | 50 160 160 37 Average Speed 203 | 150 160 197 319 Slowest Speed 1050 | 160 160 320 1050 Overloaded Moves . | . . . . Propulsion Burnouts . | . . . . Robots Hopped . | . . . . Cave-ins Triggered . | . . . . Exploration Rate (%) 36 | 4 36 65 40 Regions Visited 3 Branch Regions 2 Pre-discovered Areas . | . . . . Known Exits Taken . | . . . . Unknown Exits Taken 3 | 1 1 1 . Scrap Searched 1 | . . 1 . Spaces Dug . | . . . . Terrain Destroyed 49 | . . 5 44 Melee . | . . . . Projectile 1 | . . . 1 AOE 48 | . . 5 43 Terrain Rammed . | . . . . Walls Destroyed . | . . . . Machines Disabled . | . . . . Actions | -11 -10 -10 -10 --------- Run | Jun Mat Min Exi Total 873 | 57 268 373 175 Wait 44 | . 11 1 32 Move 725 | 45 230 323 127 Hop . | . . . . Pick Up 19 | 7 4 7 1 Fast Attach 2 | . . 2 . Attach 11 | 5 2 1 3 Detach . | . . . . Swap 7 | . . 6 1 Drop 10 | . 1 5 4 Fire 49 | . 20 22 7 Melee . | . . . . Ram . | . . . . Kick . | . . . . Crush 6 | . . 6 . Escape Stasis . | . . . . Rewire . | . . . . Trap . | . . . . Miscellaneous . | . . . . Route ------- -11/Junkyard -10/Materials (discovered 2 exits: *Min / [Sub]) -10/Mines (discovered 3 exits: [*Mat x2] / *Exi) -10/Exiles History --------- Turn | Location | Event 22 | -11/Junkyard | Discovered new exit (range 15) 81 | -11/Junkyard | Entered Materials 189 | -10/Materials | Discovered new exit (range 10) 305 | -10/Materials | Discovered new exit (range 12) 311 | -10/Materials | Build established: Mutant 527 | -10/Materials | Entered Mines 547 | -10/Mines | Discovered new exit (range 10) 636 | -10/Mines | A weapon hastily lodged in a ceiling crevice suddenly fell to the ground 762 | -10/Mines | Joined a pair of Derelicts in attacking an 0b10 outpost 911 | -10/Mines | Learned Materials security intel 998 | -10/Mines | Discovered new exit (range 7) 1068 | -10/Mines | Build established: Scavenger-Mutant 1077 | -10/Mines | Core integrity fell below 50% 1146 | -10/Mines | Learned location of 1 exit from Materials 1245 | -10/Mines | Deemed a non-threat by the Exiles lab entrance 1248 | -10/Mines | Discovered new exit (range 5) 1264 | -10/Mines | Entered Exiles 1351 | -10/Exiles | Met 8R-AWN 1372 | -10/Exiles | Build established: Mutant 1396 | -10/Exiles | Met EX-HEX 1485 | -10/Exiles | Met EX-BIN 1524 | -10/Exiles | Aligned with FarCom system 1527 | -10/Exiles | Given EX-Vault access code 1604 | -10/Exiles | Opened EX-Vault 1630 | -10/Exiles | Found YOLO Cannon 1633 | -10/Exiles | Attacked by the Exiles 1713 | -10/Exiles | Core integrity fell below 20% 1738 | -10/Exiles | Destroyed by 8R-AWN with 8R-AWN's Boregun Last Messages --------------- 01697_ Critical hit (Destroy). 01697_ Lgt. Treads destroyed. 01699_ Penetrated by HV Slug. 01702_ HV Slug penetrates Wall. 01702_ Penetrated by HV Slug. 01704_ HV Slug penetrates EX-Vault Access. 01704_ Penetrated by HV Slug. 01707_ HV Slug penetrates Wall. 01707_ HV Slug penetrates Earth. 01710_ Penetrated by HV Slug. 01710_ Critical hit (Destroy). 01710_ Lgt. Nuclear Core destroyed. 01710_ Penetrated by HV Slug. 01711_ Dropped Hcp. Storage Unit. 01712_ Penetrated by HV Slug. 01730_ HV Slug penetrates EX-Vault Access. 01730_ EX-Vault Access disabled. 01733_ Penetrated by HV Slug. 01737_ Dropped YOLO Cannon. 01738_ Penetrated by HV Slug. Map ----- +----------------------------------------------------+ | | | | | | | | | | | | | | | | | | | | | | | | | | | | | | | | | | | | | | | ???????????????????????#########?????????????????? | | ???????????????????????# !#?????????????????? | | ???????????????????????# [#?????????????????? | | ???????????????????????# [ ]#?????????????????? | | ???????????????????????#] = X#?????????????????? | | ???????????????????????## *! ##?????????????????? | | ???????????????????????# @ ] #??????????????????? | | ???????????????????????## #??????????????????? | | ????????????????????????# ; #????????????????? | | ????????????????????????# ;##?#?##???????????? | | ???????????????????????#; ; """""???????????? | | ???????????????????????#; g ; """#??????????? | | ???????????????????????#; X""#??????????? | | ???????????????????????#; ; """#??????????? | | ??????????????????####?#; ; """"???????????? | | ??????????????????"""""## ;;######???????????? | | ??????????????????""" ## ###????????????????? | | ????????????????#""X" ;??????????????????? | | ????????????????#" ;??????????????????? | | ????????????????#" #" ?????????????????? | | ????????????????#""""""?" "?#########????????? | | ??????????????????"###?" #"""""""#????????? | | ????????????????????????# #?#"""""""#????????? | | ????????????????????????# #?#"""""""#????????? | | ???????????????????????## ###"" """"#????????? | | ???????????????????????#" """"#????????? | | ???????????????????????#" """#????????? | | ???????????????????????#" """#????????? | | ???????????????????????#" """#????????? | | ???????????????????????#" """#????????? | | ???????????????????????#" """#????????? | +----------------------------------------------------+ Best States ------------- Heat Dissipation 25 Energy Generation 14 Energy Capacity 160 Matter Stores 300 Matter Capacity 300 Sight Range 16 Terrain Scan Density 10 Armor Coverage 150 Evasion (%) 40 Recoil Reduction 2 Item Schematics ----------------- None Robot Schematics ------------------ None Fabricated ------------ Nothing Alien Tech Used ----------------- None Achievements -------------- None Challenges ------------ None Game ------ Seed BombWardroneLoader Manual? 0 Play Time 00:10:06 Cumulative 63.0 hours Start 2023.08.16 @ 15:03:02 End 2023.08.16 @ 22:29:42 Sessions 3 Manual Loads 0 Difficulty Rogue Special Mode None Game No. 59 Rogue 23 Adventurer 36 Explorer 0 Win Type - Total 6 Types 1/0/5/0/0/0/0/0/0 Lore% 44 Gallery% 64 Achievement% 54 Wizard Run 0 Options --------- ASCII 0 Keyboard 0 Movement Mouse Keybinds 0 Fullscreen 1 Font 18/SmallcapsGlow Map View 76x50 Tactical HUD 1 Map Filters NONE Filters NONE Steam 1 RUN: f1cb204b-d31d-4fed-bdfe-bdebd7f017a4